[Event "European Corporate Championship 2022"]
[Site "Rotterdam"]
[Date "2022.06.18"]
[Round "2.6"]
[White "De Vreugt, Dennis"]
[Black "Jain Aum"]
[Result "1-0"]
[ECO "C10"]
[WhiteElo "2393"]
[BlackElo "1591"]
[Annotator "TA"]
[PlyCount "103"]
[EventDate "2022.06.18"]
[EventType "team-tourn"]
[EventCountry "NED"]
[SourceTitle "playchess.com"]
[Source "ChessBase"]
[SourceQuality "1"]
[TimeControl "900+5"]

{[%evp 14,103,35,33,36,27,34,19,53,55,53,53,51,29,10,0,0,-56,-72,-91,-90,-135,-141,-270,-260,-317,-120,-115,-140,-137,-133,-133,-51,-84,-25,-38,-31,-111,0,0,0,0,20,0,0,0,0,0,18,20,20,20,21,12,31,14,28,21,87,96,818,106,143,152,150,136,432,418,653,619,899,813,785,438,1500,1435,29969,29968,29968,29969,29977,29977,29982,29983,29983,29984,29984,29985,29985,29986,29986,29987]} 1. e4 {[%emt 0:00:03]} e6 {[%emt 0:00:04]} 2. d4 {[%emt 0:00:03]} d5 {[%emt 0:00:04]} 3. Nc3 {[%emt 0:00:01]} dxe4 {[%emt 0:00:21]} 4. Nxe4 {[%emt 0:00:01]} Nd7 {[%emt 0:00:08]} 5. Nf3 {[%emt 0:00:55]} Ngf6 {[%emt 0:00:19]} 6. Nxf6+ {[%emt 0:00:43]} Nxf6 {[%emt 0:00:15]} 7. Bd3 {[%emt 0:00:03] The old main line.} Be7 {[%emt 0:00:09]} 8. Qe2 {[%emt 0:00:05]} b6 {[%emt 0:01:18] C10: French with 3 Nc3: Unusual Black 3rd moves and 3...dxe4.} 9. Bb5+ {[%emt 0:00:22]} Bd7 {[%emt 0:00:04]} 10. Ne5 {[%emt 0:00:03]} O-O {[%emt 0:01:15] The position is equal.} (10... Bxb5 {keeps more tension.} 11. Qxb5+ Kf8 12. Qc6 Qd5) 11. Nxd7 {[%emt 0:00:29]} Nxd7 {[%emt 0:00:04]} 12. Bc6 {[%emt 0:00:14]} Rb8 {[%emt 0:00:48]} 13. Be3 {[%emt 0:00:53]} Nf6 {[%emt 0:01:33] [#]} 14. O-O-O $146 {[%emt 0:00:04]} ({Predecessor:} 14. O-O Qd6 15. Bf3 Nd5 16. Bd2 c5 17. c4 Nf6 18. dxc5 Qxc5 19. Bc3 Rbd8 20. Rfd1 {1-0 (48) Vass,L (2114)-Baranyi,P (1866) Hungary 2015}) 14... Nd5 {[%emt 0:02:20]} 15. a3 {[%emt 0:02:56]} (15. Qf3 $11) 15... Qd6 {[%emt 0:00:48]} 16. Qc4 {[%emt 0:00:08]} b5 {[%emt 0:02:23]} 17. Bxb5 {[%emt 0:03:35]} a6 {[%emt 0:00:44]} 18. Ba4 {[%emt 0:01:09] [#]} (18. Bc6 $17 {was forced.}) 18... Rxb2 $3 $19 {[%emt 0:01:43][%mdl 512]} 19. Rd3 {[%emt 0:01:34]} (19. Kxb2 $2 {is the wrong capture.} Qxa3+ 20. Kb1 Nc3+ 21. Qxc3 Qxc3 $19) (19. Kd2 Rfb8) 19... Nb6 $2 {[%emt 0:01:37]} (19... Rfb8 $19 20. Kd2 Nb6) 20. Qc6 $17 {[%emt 0:00:10]} ({Wrong is} 20. Qxa6 $2 Ra2 21. Kb1 Rxa3 22. Rxa3 Qxa3 $19) 20... Nxa4 {[%emt 0:00:03]} 21. Qxa4 {[%emt 0:00:05]} Rfb8 {[%emt 0:00:04]} 22. Kd2 {[%emt 0:00:12]} f5 {[%emt 0:00:12]} ({Black should play} 22... Qd5 $17 23. f3 h6) 23. g3 {[%emt 0:00:50]} g5 {[%emt 0:00:06]} (23... Qd5 $17 24. Rc1 R2b5) 24. f3 {[%emt 0:00:24]} Qd5 {[%emt 0:00:13]} 25. Rf1 {[%emt 0:00:08]} ({Better is} 25. Rc3 $1 $15) 25... Qd6 {[%emt 0:00:17]} (25... Rd8 $17 {Strongly threatening ...Bf6.} 26. Rf2 Bf6) 26. Qc4 {[%emt 0:00:27]} R8b6 {[%emt 0:00:04]} 27. Rc3 $1 {[%emt 0:00:20]} Rb7 {[%emt 0:00:12]} 28. Re1 {[%emt 0:00:06][%cal Oe3f4]} Kf7 {[%emt 0:00:03]} 29. Bf2 {[%emt 0:00:12] Hoping for Rce3.} c5 {[%emt 0:00:09]} 30. Qxc5 {[%emt 0:00:06]} Qxc5 {[%emt 0:00:05]} 31. dxc5 {[%emt 0:00:02]} Rd7+ {[%emt 0:00:01]} 32. Kc1 {[%emt 0:00:12]} Rb5 {[%emt 0:00:07]} 33. Rd1 {[%emt 0:00:43]} Rc7 {[%emt 0:00:09]} 34. c6 $36 {[%emt 0:00:08][%mdl 2048] Black is under pressure.} Bf6 {[%emt 0:00:04]} 35. Rc4 {[%emt 0:00:05]} Be7 {[%emt 0:00:06] [#]} (35... Rb8 $11) 36. Rd3 $1 $16 {[%emt 0:00:03] White is more active.} Ra5 $2 {[%emt 0:00:02][%mdl 8192]} (36... e5 $16) 37. Kb2 $2 {[%emt 0:00:02]} (37. Bb6 $18 {is the precise move to win.}) 37... Rb5+ {[%emt 0:00:02]} 38. Rb3 {[%emt 0:00:01]} Bf6+ {[%emt 0:00:06]} 39. Ka2 {[%emt 0:00:02] And now a4 would win.} Rd5 $2 {[%emt 0:00:03][%mdl 8192]} (39... Ke7 $16) 40. Rb7 $18 {[%emt 0:00:07]} Rxb7 {[%emt 0:00:03]} (40... Rdd7 $142 41. Rcb4 (41. cxd7 Rxb7 42. Rd4 Bxd4 $11) 41... Re7) 41. cxb7 {[%emt 0:00:01][%mdl 4096] Endgame KRB-KRB} Rb5 {[%emt 0:00:00]} 42. Rb4 {[%emt 0:00:02] Inhibits Rb2+.} Be5 {[%emt 0:00:12]} 43. Ba7 {[%emt 0:00:04]} Rxb4 {[%emt 0:00:12]} (43... Rd5 $142 44. Be3 Bb8 45. Bxg5 a5) 44. axb4 {[%emt 0:00:00] KB-KB} h5 {[%emt 0:00:03]} 45. b8=Q {[%emt 0:00:02] White mates.} Bxb8 {[%emt 0:00:01]} 46. Bxb8 {[%emt 0:00:00] KB-KP} Kf6 {[%emt 0:00:01]} 47. f4 {[%emt 0:00:02]} gxf4 {[%emt 0:00:07]} 48. gxf4 {[%emt 0:00:01]} h4 {[%emt 0:00:00]} 49. h3 {[%emt 0:00:01]} Ke7 {[%emt 0:00:04]} 50. c4 {[%emt 0:00:01]} Kd7 {[%emt 0:00:00]} 51. Be5 {[%emt 0:00:00]} Kc6 {[%emt 0:00:02]} 52. Kb3 {[%emt 0:00:01] Never resign too early!  Weighted Error Value: White=0.36/Black=0.45} 1-0

[Event "European Corporate Championship 2022"]
[Site "Rotterdam"]
[Date "2022.06.18"]
[Round "2.7"]
[White "Maral Pranav"]
[Black "Duivenvoorde, Cees"]
[Result "0-1"]
[ECO "D55"]
[WhiteElo "1329"]
[BlackElo "2020"]
[Annotator "NA RC"]
[PlyCount "84"]
[EventDate "2022.06.18"]
[EventType "team-tourn"]
[EventCountry "NED"]
[SourceTitle "playchess.com"]
[Source "ChessBase"]
[SourceQuality "1"]
[TimeControl "900+5"]

1. d4 {[%emt 0:00:02]} d5 {[%emt 0:00:01]} 2. c4 {[%emt 0:00:02]} e6 {[%emt 0:00:11]} 3. Nc3 {[%emt 0:00:03]} Nf6 {[%emt 0:00:00]} 4. Bg5 {[%emt 0:00:05]} Be7 {[%emt 0:00:02]} 5. e3 {[%emt 0:00:04]} O-O {[%emt 0:00:10]} 6. Nf3 {[%emt 0:00:03]} b6 {[%emt 0:00:16]} 7. Be2 {[%emt 0:00:52]} Bb7 {[%emt 0:00:08]} 8. Bxf6 {[%emt 0:00:45]} Bxf6 {[%emt 0:00:08]} 9. cxd5 {[%emt 0:00:02]} exd5 {[%emt 0:00:08]} 10. O-O {[%emt 0:00:04]} Re8 {[%emt 0:01:05]} 11. a4 {[%emt 0:00:21]} Nd7 {[%emt 0:01:22]} 12. a5 {[%emt 0:00:18]} g6 {[%emt 0:00:30]} 13. a6 {[%emt 0:00:55]} Bc6 {[%emt 0:01:31]} 14. b4 {[%emt 0:00:09]} Rc8 {[%emt 0:00:48]} 15. b5 {[%emt 0:00:39]} Ba8 {[%emt 0:00:02]} 16. Qb3 {[%emt 0:00:38]} Nf8 {[%emt 0:00:05]} 17. Rfc1 {[%emt 0:00:32]} Ne6 {[%emt 0:01:03]} 18. Na2 {[%emt 0:00:47]} Nxd4 {[%emt 0:01:09]} 19. Nxd4 {[%emt 0:01:08]} Bxd4 {[%emt 0:00:02]} 20. Rab1 {[%emt 0:00:08]} Bg7 {[%emt 0:00:52]} 21. Bg4 {[%emt 0:01:47]} f5 {[%emt 0:00:15]} 22. Bf3 {[%emt 0:00:03]} Kh8 {[%emt 0:00:11]} 23. Nb4 {[%emt 0:01:11]} Qd7 {[%emt 0:00:57]} 24. Nxd5 {[%emt 0:01:07]} c5 {[%emt 0:00:32]} 25. Rd1 {[%emt 0:00:55]} Qe6 {[%emt 0:00:39]} 26. Qc4 {[%emt 0:00:45]} Red8 {[%emt 0:00:10]} 27. Rbc1 {[%emt 0:00:15]} Rd6 {[%emt 0:00:13]} 28. Nf4 {[%emt 0:01:13]} Rxd1+ {[%emt 0:01:06]} 29. Bxd1 {[%emt 0:00:03]} Qxc4 {[%emt 0:00:08]} 30. Rxc4 {[%emt 0:00:03]} Rd8 {[%emt 0:00:01]} 31. Bf3 {[%emt 0:00:35]} Bxf3 {[%emt 0:00:05]} 32. gxf3 {[%emt 0:00:02]} Rd1+ {[%emt 0:00:01]} 33. Kg2 {[%emt 0:00:02]} Rb1 {[%emt 0:00:01]} 34. e4 {[%emt 0:00:27]} Rxb5 {[%emt 0:00:07]} 35. exf5 {[%emt 0:00:15]} gxf5 {[%emt 0:00:01]} 36. Nd5 {[%emt 0:01:45]} Ra5 {[%emt 0:00:15]} 37. Ne7 {[%emt 0:00:00]} Rxa6 {[%emt 0:00:33]} 38. Nxf5 {[%emt 0:00:00]} Ra2 {[%emt 0:00:17]} 39. Re4 {[%emt 0:00:00]} h6 {[%emt 0:00:13]} 40. h4 {[%emt 0:00:00]} Rd2 {[%emt 0:00:20]} 41. Re8+ {[%emt 0:00:15]} Kh7 {[%emt 0:00:01]} 42. h5 Rd7 {[%emt 0:00:05]} 0-1

[Event "European Corporate Championship 2022"]
[Site "Rotterdam"]
[Date "2022.06.18"]
[Round "2.9"]
[White "Haast, Mark"]
[Black "Kanyamarala, Tarun"]
[Result "1/2-1/2"]
[ECO "A26"]
[WhiteElo "2414"]
[BlackElo "2388"]
[Annotator "RC"]
[PlyCount "80"]
[EventDate "2022.06.18"]
[EventType "team-tourn"]
[EventCountry "NED"]
[SourceTitle "playchess.com"]
[Source "ChessBase"]
[SourceQuality "1"]
[TimeControl "900+5"]

1. c4 {[%emt 0:00:02]} f5 {[%emt 0:00:02]} 2. g3 {[%emt 0:00:03]} Nf6 {[%emt 0:00:02]} 3. Bg2 {[%emt 0:00:02]} g6 {[%emt 0:00:02]} 4. Nc3 {[%emt 0:00:08]} Bg7 {[%emt 0:00:02]} 5. d3 {[%emt 0:00:08]} O-O {[%emt 0:00:07]} 6. e4 {[%emt 0:00:03]} e5 {[%emt 0:00:18]} 7. Nge2 {[%emt 0:00:12]} d6 {[%emt 0:00:09]} 8. O-O {[%emt 0:00:53]} Nc6 {[%emt 0:00:06]} 9. Nd5 {[%emt 0:00:49]} Nd7 {[%emt 0:04:13]} 10. exf5 {[%emt 0:02:12]} gxf5 {[%emt 0:00:16]} 11. f4 {[%emt 0:00:04]} Nc5 {[%emt 0:00:10]} 12. fxe5 {[%emt 0:01:24]} dxe5 {[%emt 0:00:03]} 13. Be3 {[%emt 0:00:09]} Ne6 {[%emt 0:00:14]} 14. Qd2 {[%emt 0:00:08]} Ne7 {[%emt 0:01:01]} 15. d4 {[%emt 0:00:53]} Ng6 {[%emt 0:01:23]} 16. dxe5 {[%emt 0:01:09]} Nxe5 {[%emt 0:00:11]} 17. b3 {[%emt 0:00:51]} c6 {[%emt 0:01:47]} 18. Ndf4 {[%emt 0:01:11]} Ng4 {[%emt 0:00:12]} 19. Rad1 {[%emt 0:00:19]} Nxe3 {[%emt 0:00:40]} 20. Qxe3 {[%emt 0:00:02]} Qb6 {[%emt 0:00:03]} 21. Qxb6 {[%emt 0:01:42]} axb6 {[%emt 0:00:02]} 22. Nxe6 {[%emt 0:01:01]} Bxe6 {[%emt 0:00:03]} 23. Nf4 {[%emt 0:00:01]} Bf7 {[%emt 0:00:46]} 24. a4 {[%emt 0:00:34]} Rad8 {[%emt 0:00:20]} 25. Bf3 {[%emt 0:00:46]} Rfe8 {[%emt 0:01:38]} 26. Rxd8 {[%emt 0:00:03]} Rxd8 {[%emt 0:00:01]} 27. Rd1 {[%emt 0:00:02]} Rd4 {[%emt 0:00:41]} 28. Kf2 {[%emt 0:00:30]} b5 {[%emt 0:00:30]} 29. axb5 {[%emt 0:00:04]} cxb5 {[%emt 0:00:02]} 30. cxb5 {[%emt 0:00:48]} Bxb3 {[%emt 0:00:03]} 31. Rxd4 {[%emt 0:00:06]} Bxd4+ {[%emt 0:00:02]} 32. Kg2 {[%emt 0:00:17]} Bc4 {[%emt 0:00:21]} 33. Bxb7 {[%emt 0:00:08]} Bxb5 {[%emt 0:00:03]} 34. Bd5+ {[%emt 0:00:03]} Kh8 {[%emt 0:00:11]} 35. Kf3 {[%emt 0:00:28]} Bg1 {[%emt 0:00:14]} 36. h3 {[%emt 0:00:02]} Kg7 {[%emt 0:00:09]} 37. g4 {[%emt 0:00:05]} fxg4+ {[%emt 0:00:02]} 38. hxg4 {[%emt 0:00:02]} Bb6 {[%emt 0:00:07]} 39. Be4 {[%emt 0:00:11]} h6 {[%emt 0:00:08]} 40. Bd3 {[%emt 0:00:05]} Bxd3 {[%emt 0:02:01]} 1/2-1/2

[Event "European Corporate Championship 2022"]
[Site "Rotterdam"]
[Date "2022.06.18"]
[Round "2.10"]
[White "Flynn, Jacob"]
[Black "Schouten, Jordy"]
[Result "0-1"]
[ECO "D80"]
[WhiteElo "2205"]
[BlackElo "2121"]
[Annotator "TA"]
[PlyCount "71"]
[EventDate "2022.06.18"]
[EventType "team-tourn"]
[EventCountry "NED"]
[SourceTitle "playchess.com"]
[Source "ChessBase"]
[SourceQuality "1"]
[TimeControl "900+5"]

{[%evp 9,71,25,25,22,60,12,18,1,26,14,0,-2,11,0,18,14,29,28,31,20,14,14,31,27,52,43,45,45,58,-40,-20,-82,-69,-132,-131,-134,-89,-83,-86,-103,-81,-85,-46,-46,-64,-64,-63,-86,-96,-127,-123,-158,-123,-175,-175,-246,-240,-325,-282,-388,-371,-417,-366,-893]} 1. d4 {[%emt 0:00:03]} Nf6 {[%emt 0:00:01]} 2. c4 {[%emt 0:00:01]} g6 {[%emt 0:00:01]} 3. Nc3 {[%emt 0:00:12]} d5 {[%emt 0:00:02]} 4. Bg5 {[%emt 0:00:02]} Bg7 {[%emt 0:00:02]} 5. Bxf6 {[%emt 0:00:09]} Bxf6 {[%emt 0:00:02]} 6. cxd5 {[%emt 0:00:03] D80: Grünfeld: Unusual White 4th moves and 4 Bg5.} O-O {[%emt 0:00:05][%cal Oc7c5]} 7. e4 {[%emt 0:00:04]} (7. e3 $14 {is superior.}) 7... c6 {[%emt 0:00:19]} 8. Nf3 {[%emt 0:00:40] The position is equal.} Bg7 {[%emt 0:00:13]} 9. Bc4 {[%emt 0:01:23]} Bg4 {[%emt 0:00:19]} 10. e5 {[%emt 0:01:04]} b5 {[%emt 0:00:14]} 11. Be2 {[%emt 0:01:00]} b4 {[%emt 0:00:04]} 12. Na4 {[%emt 0:00:46]} cxd5 {[%emt 0:00:08]} 13. O-O {[%emt 0:01:53] [#]} Nd7 $146 {[%emt 0:00:16]} ({Predecessor:} 13... Qa5 14. b3 Bxf3 15. Bxf3 e6 16. Qd2 Nd7 17. a3 Rfb8 18. Rfc1 Bf8 19. Bd1 Rc8 {0-1 (59) Xiong,J (2665)-Durarbayli,V (2618) Saint Louis 2018}) 14. Ne1 {[%emt 0:00:18][%cal Bf3e1,Be1d3,Bd3c5][%mdl 32] Pair of Knights!} (14. Ng5 {is more complex.} Bxe2 15. Qxe2 e6 16. f4) 14... Bxe2 {[%emt 0:00:09]} 15. Qxe2 {[%emt 0:00:01]} Rc8 {[%emt 0:00:26][%cal Ba8c8,Bc8c6,Bc6e6,Be6e5][%mdl 32]} 16. Nd3 {[%emt 0:00:14]} Qa5 {[%emt 0:00:45]} 17. Nac5 {[%emt 0:01:13]} Nxc5 {[%emt 0:00:24]} 18. Nxc5 {[%emt 0:00:13]} Rc6 {[%emt 0:00:07]} 19. b3 {[%emt 0:00:47]} ({White should try} 19. a3 $14) 19... e6 {[%emt 0:00:40]} 20. Kh1 {[%emt 0:00:40]} (20. Qe1 $11) 20... Rfc8 $17 {[%emt 0:00:24][%cal Bf8c8,Bc8c3,Bc3b3,Bb3e3,Be3e4,Be4b4][%mdl 32]} 21. Qd2 {[%emt 0:02:05] [#]} (21. g3 $15) 21... Bxe5 $1 {[%emt 0:00:39][%mdl 512]} 22. Nxe6 {[%emt 0:01:03]} Rxe6 {[%emt 0:00:13]} 23. dxe5 {[%emt 0:00:01]} Rxe5 {[%emt 0:00:04]} 24. a3 {[%emt 0:00:02]} Rc3 {[%emt 0:06:13]} 25. f4 {[%emt 0:00:42]} Ree3 {[%emt 0:01:35]} 26. axb4 {[%emt 0:00:13]} Qb5 {[%emt 0:00:11]} 27. f5 {[%emt 0:01:03]} Rxb3 {[%emt 0:02:24]} 28. fxg6 {[%emt 0:00:08]} hxg6 {[%emt 0:00:01]} 29. Qf2 {[%emt 0:00:01]} Re7 {[%emt 0:00:08] Active counter play!} 30. Qf6 {[%emt 0:00:35]} Rbe3 {[%emt 0:00:18]} 31. Qd4 {[%emt 0:00:54] [#]} (31. Rad1 $17 {was worth a try.}) 31... R3e4 $1 $19 {[%emt 0:00:18]} 32. Qd2 {[%emt 0:00:05]} (32. Qc5 {was necessary.} Qd7 33. Rad1) 32... Rxb4 {[%emt 0:00:12]} 33. Rfd1 {[%emt 0:00:05]} Rbe4 {[%emt 0:00:11] Threatens to win with ...d4.} 34. h3 {[%emt 0:00:03]} d4 {[%emt 0:00:02]} 35. Rab1 {[%emt 0:00:03]} Qd5 {[%emt 0:00:03] Hoping for ...Re2.} 36. Qh6 $2 {[%emt 0:00:16] Weighted Error Value: White=0.33/Black=0.13 (very precise)} (36. Rb8+ Re8 37. Rxe8+ Rxe8 38. Qf2) 0-1

[Event "European Corporate Championship 2022"]
[Site "Rotterdam"]
[Date "2022.06.18"]
[Round "2.11"]
[White "IJzermans, Cees"]
[Black "Melaugh, Shane"]
[Result "0-1"]
[ECO "A25"]
[WhiteElo "2115"]
[BlackElo "2087"]
[Annotator "NA RC"]
[PlyCount "101"]
[EventDate "2022.06.18"]
[EventType "team-tourn"]
[EventCountry "NED"]
[SourceTitle "playchess.com"]
[Source "ChessBase"]
[SourceQuality "1"]
[TimeControl "900+5"]

1. c4 {[%emt 0:00:02]} e5 {[%emt 0:00:01]} 2. Nc3 {[%emt 0:00:02]} Nc6 {[%emt 0:00:08]} 3. g3 {[%emt 0:00:02]} f5 {[%emt 0:00:02]} 4. Bg2 {[%emt 0:00:03]} Nf6 {[%emt 0:00:01]} 5. d3 {[%emt 0:00:03]} Bb4 {[%emt 0:00:07]} 6. Qb3 {[%emt 0:00:35]} Nd4 {[%emt 0:00:13]} 7. Qa4 {[%emt 0:00:03]} O-O {[%emt 0:00:41]} 8. e3 {[%emt 0:00:11]} Nc6 {[%emt 0:14:32]} 9. Nge2 {[%emt 0:00:14]} d5 {[%emt 0:00:00]} 10. a3 {[%emt 0:01:26]} Bxc3+ {[%emt 0:00:00]} 11. Nxc3 {[%emt 0:00:03]} d4 {[%emt 0:00:00]} 12. Nd5 {[%emt 0:00:33]} e4 {[%emt 0:00:00]} 13. exd4 {[%emt 0:00:49]} Nxd5 {[%emt 0:00:00]} 14. cxd5 {[%emt 0:00:02]} Qxd5 {[%emt 0:00:00]} 15. Be3 {[%emt 0:00:04]} Bd7 {[%emt 0:00:00]} 16. Rc1 {[%emt 0:02:06]} Ne5 {[%emt 0:00:00]} 17. Qd1 {[%emt 0:01:17]} Nf3+ {[%emt 0:00:00]} 18. Bxf3 {[%emt 0:00:03]} exf3 {[%emt 0:00:00]} 19. Rc5 {[%emt 0:00:03]} Qe6 {[%emt 0:00:00]} 20. Qxf3 {[%emt 0:00:14]} f4 {[%emt 0:00:00]} 21. gxf4 {[%emt 0:00:09]} c6 {[%emt 0:00:00]} 22. Rg1 {[%emt 0:00:31]} Rf7 {[%emt 0:00:00]} 23. Re5 {[%emt 0:01:20]} Qb3 {[%emt 0:00:00]} 24. Qe2 {[%emt 0:00:18]} Bf5 {[%emt 0:00:00]} 25. Rg3 {[%emt 0:02:50]} Rd8 {[%emt 0:00:00]} 26. Bd2 {[%emt 0:00:16]} Qxb2 {[%emt 0:00:00]} 27. Re8+ {[%emt 0:00:08]} Rxe8 {[%emt 0:00:00]} 28. Qxe8+ {[%emt 0:00:02]} Rf8 {[%emt 0:00:00]} 29. Qe5 {[%emt 0:00:30]} Qb1+ {[%emt 0:00:00]} 30. Ke2 {[%emt 0:00:03]} Bg6 {[%emt 0:00:00]} 31. Qe6+ {[%emt 0:00:17]} Bf7 {[%emt 0:00:00]} 32. Qd7 {[%emt 0:00:42]} Qh1 {[%emt 0:00:00]} 33. Qh3 {[%emt 0:00:47]} Qd5 {[%emt 0:00:00]} 34. Be3 {[%emt 0:00:35]} Bh5+ {[%emt 0:00:00]} 35. Kf1 {[%emt 0:00:19]} Qh1+ {[%emt 0:00:00]} 36. Rg1 {[%emt 0:00:07]} Be2+ {[%emt 0:00:00]} 37. Kxe2 {[%emt 0:00:01]} Qxg1 {[%emt 0:00:00]} 38. Qe6+ {[%emt 0:00:03]} Kh8 {[%emt 0:00:00]} 39. d5 {[%emt 0:00:13]} cxd5 {[%emt 0:00:00]} 40. Qxd5 {[%emt 0:00:03]} Qg4+ {[%emt 0:00:00]} 41. Kd2 {[%emt 0:00:02]} Qc8 {[%emt 0:00:43]} 42. h4 {[%emt 0:00:07]} Qc7 {[%emt 0:00:09]} 43. h5 {[%emt 0:00:14]} h6 {[%emt 0:00:23]} 44. Qd4 {[%emt 0:00:36]} Rc8 {[%emt 0:00:14]} 45. Ke2 {[%emt 0:00:09]} Qc2+ {[%emt 0:00:07]} 46. Kf1 {[%emt 0:00:22]} Qd1+ {[%emt 0:00:04]} 47. Kg2 {[%emt 0:00:01]} Qg4+ {[%emt 0:00:04]} 48. Kf1 {[%emt 0:00:02]} Qxh5 {[%emt 0:00:48]} 49. Qd7 {[%emt 0:00:01]} Rc2 {[%emt 0:00:10]} 50. Kg1 {[%emt 0:00:14]} Re2 {[%emt 0:00:28]} 51. Qc8+ {[%emt 0:00:23]} 0-1

[Event "European Corporate Championship 2022"]
[Site "Rotterdam"]
[Date "2022.06.18"]
[Round "2.12"]
[White "Dayanand Kanyamarala"]
[Black "Van den Broek, Rene"]
[Result "0-1"]
[ECO "A26"]
[WhiteElo "1142"]
[BlackElo "1980"]
[Annotator "NA RC"]
[PlyCount "28"]
[EventDate "2022.06.18"]
[EventType "team-tourn"]
[EventCountry "NED"]
[SourceTitle "playchess.com"]
[Source "ChessBase"]
[SourceQuality "1"]
[TimeControl "900+5"]

1. c4 {[%emt 0:00:07]} e5 {[%emt 0:00:02]} 2. e4 {[%emt 0:00:06]} g6 {[%emt 0:00:28]} 3. Nc3 {[%emt 0:00:09]} Bg7 {[%emt 0:00:01]} 4. d3 {[%emt 0:00:04]} d6 {[%emt 0:00:07]} 5. g3 {[%emt 0:00:06]} Nc6 {[%emt 0:00:16]} 6. Bg2 {[%emt 0:00:04]} Nge7 {[%emt 0:00:15]} 7. Nge2 {[%emt 0:00:03]} Be6 {[%emt 0:00:38]} 8. O-O {[%emt 0:00:05]} Qd7 {[%emt 0:00:04]} 9. Be3 {[%emt 0:00:15]} Bh3 {[%emt 0:00:17]} 10. Nd5 {[%emt 0:00:20]} h5 {[%emt 0:01:08]} 11. Bxh3 {[%emt 0:00:51]} Qxh3 {[%emt 0:00:03]} 12. Nxc7+ {[%emt 0:00:05]} Kd7 {[%emt 0:00:08]} 13. Nxa8 {[%emt 0:00:06]} h4 {[%emt 0:00:10]} 14. Bxa7 {[%emt 0:00:49]} hxg3 {[%emt 0:00:44]} 0-1

[Event "European Corporate Championship 2022"]
[Site "Rotterdam"]
[Date "2022.06.18"]
[Round "2.13"]
[White "Afek, Yochanan"]
[Black "Warmerdam, Max"]
[Result "0-1"]
[ECO "B22"]
[WhiteElo "2210"]
[BlackElo "2614"]
[Annotator "TA"]
[PlyCount "43"]
[EventDate "2022.06.18"]
[EventType "team-tourn"]
[EventCountry "NED"]
[SourceTitle "playchess.com"]
[Source "ChessBase"]
[SourceQuality "1"]
[TimeControl "900+5"]

{[%evp 9,43,27,38,26,35,22,30,22,18,18,21,8,31,20,46,8,66,-45,-7,-12,27,-77,-77,-83,-44,-164,-172,-164,-166,-170,-164,-162,-162,-161,-161,-518]} 1. e4 {[%emt 0:00:06]} c5 {[%emt 0:00:04]} 2. c3 {[%emt 0:00:11]} d5 {[%emt 0:00:01]} 3. exd5 {[%emt 0:00:01]} Nf6 {[%emt 0:00:02]} 4. Bb5+ {[%emt 0:00:29]} Nbd7 {[%emt 0:00:02]} 5. c4 {[%emt 0:00:26]} a6 {[%emt 0:00:05]} 6. Bxd7+ {[%emt 0:00:31] B22: Sicilian: 2 c3.} Bxd7 {[%emt 0:00:02]} (6... Kxd7 7. Nc3 $16) 7. Nf3 {[%emt 0:01:24]} e6 {[%emt 0:00:02]} 8. dxe6 {[%emt 0:00:22] White has an edge.} Bxe6 {[%emt 0:00:01]} 9. b3 {[%emt 0:00:05]} Qd3 {[%emt 0:01:35]} 10. Qe2 {[%emt 0:00:16]} Qxe2+ {[%emt 0:00:42]} (10... Qc2 $5 {[%cal Rc2c1]} 11. O-O O-O-O $11) 11. Kxe2 {[%emt 0:00:01] [#]} O-O-O $146 {[%emt 0:00:02]} ({Predecessor:} 11... b5 12. Na3 b4 13. Nc2 Bd6 14. Bb2 Nh5 15. Rad1 O-O 16. d4 Rae8 17. Kf1 Bg4 {1-0 (47) Berry,E (1992)-Sani,V (1847) IECC email 2000}) 12. Rd1 {[%emt 0:00:57]} Bf5 {[%emt 0:00:38]} (12... Bd6 $11) 13. d4 {[%emt 0:00:34]} (13. d3 $1 $14) 13... cxd4 {[%emt 0:00:32]} (13... Bc2 $5 {[%cal Rc2d1]} 14. Re1 (14. Rd2 cxd4 15. Rxd4 Bc5 $17) 14... cxd4 $15) 14. Nxd4 {[%emt 0:00:09]} Bg6 {[%emt 0:00:02]} 15. Bb2 {[%emt 0:10:48]} (15. Nc3 $11 {keeps the balance.}) 15... Bc5 $36 {[%emt 0:00:38][%mdl 3072] ...Rhe8+ is the strong threat. Black has strong compensation. Black is really pushing.} 16. Na3 {[%emt 0:00:00]} Ng4 {[%emt 0:01:58] Hoping for ...Rhe8+. Black is more active.} 17. Nac2 {[%emt 0:00:00] [#]} (17. h3 $1 $15 Rhe8+ 18. Kf1) 17... Rhe8+ $1 $19 {[%emt 0:01:32] Black is clearly better.} (17... Nxh2 18. Ne3 $15) 18. Ne3 {[%emt 0:00:00]} Bh5 {[%emt 0:00:36] White must now prevent ...Nxe3+. This bishop pair is nice.} ({Stronger than} 18... Nxh2 19. Nf3 Nxf3 20. Rxd8+ Rxd8 21. Kxf3 $15) 19. Nf3 {[%emt 0:00:00] [#]} Rxd1 {[%emt 0:00:34]} ({Worse is} 19... Nxe3 20. Rxd8+ Kxd8 21. fxe3 $15) 20. Rxd1 {[%emt 0:00:00]} Bxe3 {[%emt 0:00:03]} ({Not} 20... Nxe3 21. fxe3 Rxe3+ 22. Kd2 $17) 21. fxe3 {[%emt 0:00:00]} Nxe3 {[%emt 0:00:02]} 22. Ra1 $2 {[%emt 0:00:00] Weighted Error Value: White=0.43/Black=0.16 (very precise)} (22. Rd3 {is a better chance.} Nxc4+ 23. Kf2 Nxb2 24. Rd2) 0-1

[Event "European Corporate Championship 2022"]
[Site "Rotterdam"]
[Date "2022.06.18"]
[Round "2.14"]
[White "Oudshoorn, Arres"]
[Black "Theulings, Paul-Peter"]
[Result "1/2-1/2"]
[ECO "B03"]
[WhiteElo "2137"]
[BlackElo "2063"]
[Annotator "NA RC"]
[PlyCount "41"]
[EventDate "2022.06.18"]
[EventType "team-tourn"]
[EventCountry "NED"]
[SourceTitle "playchess.com"]
[Source "ChessBase"]
[SourceQuality "1"]
[TimeControl "900+5"]

1. e4 {[%emt 0:00:02]} Nf6 {[%emt 0:00:02]} 2. e5 {[%emt 0:00:04]} Nd5 {[%emt 0:00:02]} 3. d4 {[%emt 0:00:02]} d6 {[%emt 0:00:02]} 4. c4 {[%emt 0:00:11]} Nb6 {[%emt 0:00:03]} 5. exd6 {[%emt 0:00:03]} exd6 {[%emt 0:00:03]} 6. Be3 {[%emt 0:00:32]} Be7 {[%emt 0:00:11]} 7. Nc3 {[%emt 0:00:09]} Nc6 {[%emt 0:00:08]} 8. Nf3 {[%emt 0:00:53]} O-O {[%emt 0:00:18]} 9. Bd3 {[%emt 0:00:08]} Nb4 {[%emt 0:01:18]} 10. Be2 {[%emt 0:00:50]} Bf5 {[%emt 0:00:51]} 11. Rc1 {[%emt 0:00:03]} d5 {[%emt 0:00:50]} 12. a3 {[%emt 0:00:31]} Nc6 {[%emt 0:00:15]} 13. c5 {[%emt 0:00:15]} Nc8 {[%emt 0:02:11]} 14. Qb3 {[%emt 0:00:48]} Be4 {[%emt 0:01:48]} 15. Qxb7 {[%emt 0:00:41]} Qd7 {[%emt 0:01:06]} 16. Bb5 {[%emt 0:00:29]} Na5 {[%emt 0:01:22]} 17. Qxa8 {[%emt 0:02:17]} c6 {[%emt 0:00:03]} 18. Ne5 {[%emt 0:00:01]} Qc7 {[%emt 0:01:16]} 19. Bxc6 {[%emt 0:00:29]} Nd6 {[%emt 0:00:57]} 20. cxd6 {[%emt 0:00:12]} Bxd6 {[%emt 0:00:03]} 21. Nb5 {[%emt 0:00:34]} 1/2-1/2